Cogmind - Beta 13 @@@ ROGUE MODE // 2024.04.01 @ 15:39:34 Player: Ham Result: Destroyed self with Mini Grenade Launcher Performance ------------- Evolutions (1) 500 Regions Visited (2) 400 Robots Destroyed (60) 300 Value Destroyed (1061) 1061 Prototype IDs (5) 100 Alien Tech Used (0) 0 Bonus (0) 0 TOTAL SCORE: 2361 Bonus ------- None Cogmind --------- Core Integrity 0/400 Matter 79/300 Energy 238/250 System Corruption 0% Temperature Cool (0) Movement Core (1500) Ox29 Location -9/Materials Parts ------- > --- POWER (1) -------- Ion Engine > --- PROPULSION (3) --- (None) > --- UTILITY (3) ------ Huge Storage Unit Sensor Array Improved Signal Interpreter > --- WEAPON (2) ------- Assault Rifle Mini Grenade Launcher > --- INVENTORY (25) --- Light Ion Engine Improved Hover Unit Cooling System Disposable Heat Sink Structural Scanner Sensor Array Terrain Scan Processor Terrain Scan Processor Seismic Detector Seismic Detector Advanced Targeting Computer ECM Suite Tractor Beam Field Recycling Unit (0) Light EM Pulse Cannon Light EM Pulse Cannon Peak State ------------ > --- POWER ------------ Light Ion Engine > --- PROPULSION ------- Improved Hover Unit Improved Hover Unit Improved Hover Unit > --- UTILITY ---------- High-capacity Storage Unit Sensor Array Improved Signal Interpreter > --- WEAPON ----------- Light EM Pulse Cannon Assault Rifle > --- INVENTORY -------- Ion Engine Light Ion Engine Aluminum Leg Cooling System Disposable Heat Sink Structural Scanner Sensor Array Terrain Scan Processor Seismic Detector Seismic Detector Advanced Targeting Computer ECM Suite Tractor Beam Field Recycling Unit Beam Rifle Light EM Pulse Cannon Light EM Pulse Cannon Light Cannon Mini Grenade Launcher Mini Grenade Launcher [Rating: 18] Favorites ----------- Power Light Ion Engine Engine Light Ion Engine Propulsion Aluminum Leg Leg Aluminum Leg Wheel Wheel Hover Unit Improved Hover Unit Utility High-capacity Storage Unit Device Sensor Array Storage High-capacity Storage Unit Processor Signal Interpreter Weapon Light EM Pulse Cannon Energy Gun EM Pulse Gun Energy Cannon Light EM Pulse Cannon Ballistic Gun Assault Rifle Ballistic Cannon Light Cannon Launcher Mini Grenade Launcher Build | -11 -10 -9 ------- Run | Yrd Mat Mat Slots Evolved 2 | . . 2 Power . | . . . Propulsion 1 | . . 1 Utility 1 | . . 1 Weapon . | . . . Parts Attached 38 | 8 12 18 Power 5 | 1 1 3 Engine 5 | 1 1 3 Core . | . . . Reactor . | . . . Propulsion 10 | 2 2 6 Treads . | . . . Leg 4 | 2 2 . Wheel 3 | . . 3 Hover 3 | . . 3 Flight . | . . . Utility 10 | 3 4 3 Device 4 | 1 2 1 Storage 4 | 2 1 1 Processor 2 | . 1 1 Hackware . | . . . Protection . | . . . Artifact . | . . . Weapon 13 | 2 5 6 Energy Gun 3 | 1 1 1 Energy Cannon 3 | . 2 1 Ballistic Gun 3 | 1 1 1 Ballistic Cannon 1 | . . 1 Launcher 3 | . 1 2 Special Weapon . | . . . Impact Weapon . | . . . Slashing Weapon . | . . . Piercing Weapon . | . . . Special Melee Weapon . | . . . Unidentified Prototypes . | . . . Parts Lost 13 | . 2 11 Power 2 | . . 2 Propulsion 5 | . . 5 Utility 1 | . 1 . Weapon 5 | . 1 4 Highest Loss Streak 6 | . 1 6 To Critical Strikes . | . . . Average Slot Usage (%) 94 | . 98 87 Engine 12 | . 14 10 Leg 21 | . 28 12 Wheel 1 | . . 3 Hover 3 | . . 7 Device 12 | . 14 11 Storage 11 | . 12 11 Processor 4 | . . 11 Energy Gun 3 | . 3 1 Energy Cannon 11 | . 13 7 Ballistic Gun 6 | . 5 7 Launcher 4 | . 5 2 Naked Turns . | . . . Heaviest Build 90 | 14 54 90 Greatest Support 30 | 20 20 30 Greatest Overweight (x) 8 | 3 2 8 Average Overweight (x) 1 | . 1 2 Largest Inventory Capacity 25 | 8 20 25 Average Capacity 17 | 7 16 20 Most Carried 20 | 7 19 20 Average Carried 13 | 4 11 18 Final Capacity 25 | 8 20 25 Final Carried 19 | 7 19 16 Class Distribution -------------------- 96% | Mutant 3% | Scavenger-Mutant Dominant Class ---------------- Mutant | -10/Materials Mutant | -9/Materials Resources | -11 -10 -9 ----------- Run | Yrd Mat Mat Matter Collected 711 | 295 128 288 Remotely . | . . . Salvage Created 1476 | 151 652 673 Parts 115 | 15 53 47 Haulers Intercepted . | . . . Recyclers Shooed 1 | . . 1 Parts Field Recycled . | . . . Retrieved Matter . | . . . Parts Self-Destructed . | . . . Prevented . | . . . Kills | -11 -10 -9 ------- Run | Yrd Mat Mat Combat Hostiles Destroyed 29 | . 15 14 Guns 15 | . 11 4 Cannons 4 | . 1 3 AOE 10 | . 3 7 Classes Destroyed 9 | 2 6 1 Worker 9 | . 5 4 Builder 5 | . 1 4 Tunneler 5 | 4 1 . Recycler 4 | 1 . 3 Operator 1 | . 1 . Watcher 7 | . 3 4 Swarmer 11 | . 6 5 Grunt 16 | . 9 7 Sentry 2 | . . 2 Best Kill Streak 7 | 3 7 6 Combat Bots Only 4 | . 4 3 Max Kills in Single Turn 3 | 1 2 3 Gunslinging . | . . . Exploded 2 | . 1 2 Melee . | . . . Uniques/NPCs Destroyed . | . . . Combat | -11 -10 -9 -------- Run | Yrd Mat Mat Hostile Shots Fired 191 | . 54 137 Missed 50 | . 15 35 Damage Taken 1986 | 36 565 1385 Core 497 | . 76 421 Absorbed by Shields . | . . . Core Remaining (%) 84 | 100 69 . Volleys Fired 151 | 17 63 71 Largest 2 | 2 2 2 Hottest 112 | 60 112 112 Shots Fired 244 | 34 108 102 Gun 181 | 34 93 54 Cannon 44 | . 11 33 Launcher 19 | . 4 15 Special . | . . . Kinetic 119 | 17 54 48 Thermal 34 | . 13 21 Explosive 19 | . 4 15 Electromagnetic 72 | 17 37 18 Robot Hit Streak 11 | 7 8 11 Robot Miss Streak 6 | 6 4 4 Penetration Max . | . . . Secondary Targets 4 | . 3 1 Max Gunslinging Chain 1 | . 1 1 Shots Hit Robots 137 | 17 65 55 Core Hits 79 | 7 36 36 Critical Kills . | . . . Critical Parts Destroyed . | . . . Critical Strikes 3 | . . 3 Burn 2 | . . 2 Blast 1 | . . 1 Melee Attacks . | . . . Impact . | . . . Slashing . | . . . Piercing . | . . . Sneak Attacks . | . . . Combat Hostiles . | . . . Follow-up Attacks . | . . . Damage Inflicted 3403 | 200 1105 2098 Guns 1155 | 176 559 420 Cannons 612 | . 163 449 Explosions 1636 | 24 383 1229 Melee . | . . . Ramming . | . . . Kinetic 596 | 57 232 307 Thermal 535 | 24 134 377 Explosive 1394 | . 336 1058 Electromagnetic 878 | 119 403 356 Impact . | . . . Slashing . | . . . Piercing . | . . . Highest Corruption . | . . . Average Corruption . | . . . Corruption Purged . | . . . Corruption Blocked . | . . . Overload Shots . | . . . Overflow Damage 78 | . 6 72 Projectiles 32 | . 6 26 Explosions 46 | . . 46 Melee . | . . . Knockbacks . | . . . Impact . | . . . Kinetic . | . . . Secondary . | . . . Self-Inflicted Damage 263 | 36 48 179 Shots 7 | 1 1 5 Rammed 1 | . . 1 Targets Rammed 1 | . . 1 Kicked . | . . . Crushed . | . . . Highest Temperature 256 | 40 76 256 Average Temperature 47 | 16 27 76 Received Heat Transfer 528 | . 99 429 Siege Activations . | . . . Robots Corrupted . | . . . Combat Hostiles . | . . . Parts Fried . | . . . Impact Corruptions . | . . . Robots Melted . | . . . Combat Hostiles . | . . . Parts Melted . | . . . Heat Transferred 1116 | 50 250 816 Parts Sabotaged . | . . . Parts Stolen . | . . . Parts Stripped . | . . . Power Chain Reactions 5 | 1 1 3 Alert | -11 -10 -9 ------- Run | Yrd Mat Mat Peak Influence 352 | 25 352 310 Initial 33 | . 16 33 Average 119 | 13 150 93 Maximum Alert Level 1 | . 1 1 Low Security (%) 84 | 100 76 93 Level 1 15 | . 23 6 Level 2 . | . . . Level 3 . | . . . Level 4 . | . . . Level 5 . | . . . High Security . | . . . Max Security . | . . . Squads Dispatched 5 | . 3 2 Investigation 2 | . 2 . Extermination . | . . . Reinforcement 3 | . 1 2 Assault . | . . . Garrison . | . . . Intercept . | . . . Searches Triggered . | . . . Construction Impeded . | . . . Haulers Reinforced . | . . . Active Scanning Responses . | . . . Cargo Convoy Interrupts . | . . . Stealth | -11 -10 -9 --------- Run | Yrd Mat Mat Distress Signals 4 | . 2 2 Communications Jammed . | . . . Distress Signals . | . . . Times Spotted 45 | . 23 22 Peak Tracking Total 5 | . 3 5 Tactical Retreats . | . . . Traps | -11 -10 -9 ------- Run | Yrd Mat Mat Traps Triggered 2 | . 2 . Indirectly . | . . . Trap Hack Attempts . | . . . Triggered . | . . . Disarmed . | . . . Reprogrammed 6 | . 6 . Reused . | . . . Traps Extracted . | . . . Installed . | . . . Triggered . | . . . Machines | -11 -10 -9 ---------- Run | Yrd Mat Mat Machines Disabled 7 | . 2 5 Max in Single Turn 1 | . 1 1 Machines Repaired . | . . . Machines Dismantled . | . . . Machines Sabotaged . | . . . Overloaded Fab Kills . | . . . Hacking | -11 -10 -9 --------- Run | Yrd Mat Mat Machines Accessed 9 | . 9 . Terminals 7 | . 7 . Fabricators . | . . . Repair Stations . | . . . Recycling Units 2 | . 2 . Scanalyzers . | . . . Garrison Access . | . . . Total Hacks 28 | . 28 . Successful 13 | . 13 . Failed 15 | . 15 . Catastrophic 3 | . 3 . Database Lockouts . | . . . Manual . | . . . Terminals 23 | . 23 . Fabricators . | . . . Repair Stations . | . . . Recycling Units 5 | . 5 . Scanalyzers . | . . . Garrison Access . | . . . Terminal Hacks 10 | . 10 . Prototype ID Bank 2 | . 2 . Emergency Access Points 1 | . 1 . Alert Level 2 | . 2 . Reprogram Traps 1 | . 1 . Patrol Status 1 | . 1 . Transport Status 1 | . 1 . Reinforcement Status 1 | . 1 . Zone Layout 1 | . 1 . Fabricator Hacks . | . . . Repair Station Hacks . | . . . Recycling Unit Hacks 3 | . 3 . Retrieve Matter 1 | . 1 . Retrieve Components 2 | . 2 . Scanalyzer . | . . . Garrison Access Hacks . | . . . Unauthorized Hacks . | . . . Terminals . | . . . Fabricators . | . . . Repair Stations . | . . . Recycling Units . | . . . Scanalyzers . | . . . Garrison Access . | . . . Data Cores Recovered . | . . . Used . | . . . Hacking Detections 7 | . 7 . Full Trace Events . | . . . Feedback Events . | . . . Feedback Blocked . | . . . Robot Schematics Acquired . | . . . Robots Built . | . . . Authchips . | . . . Time . | . . . Total Robot Build Rating . | . . . Part Schematics Acquired . | . . . Parts Built . | . . . Authchips . | . . . Time . | . . . Total Part Build Rating . | . . . Parts Repaired . | . . . Time . | . . . Parts Recycled . | . . . Recycled Matter . | . . . Retrieved Matter . | . . . Retrieved Components 11 | . 11 . Parts Scanalyzed . | . . . Part Schematics Acquired . | . . . Parts Damaged . | . . . Bothacking | -11 -10 -9 ------------ Run | Yrd Mat Mat Used RIF Installer . | . . . Robots Hacked . | . . . Non-combat . | . . . Combat . | . . . Robot Hacks Applied . | . . . Relay Couplers Released . | . . . Fabnet Peak Effective % . | . . . Robots Rewired . | . . . Allies Hacked . | . . . Hacks Repelled . | . . . Allies | -11 -10 -9 -------- Run | Yrd Mat Mat Total Allies . | . . . Largest Group . | . . . Highest-Rated Group . | . . . Highest-Rated Ally . | . . . Total Orders . | . . . Ally Attacks . | . . . Total Damage . | . . . Kills . | . . . Allies Corrupted . | . . . Allies Melted . | . . . Intel | -11 -10 -9 ------- Run | Yrd Mat Mat Robot Analysis Total . | . . . Derelict Logs Recovered . | . . . Drone Launches . | . . . Drone Recoveries . | . . . Exploration | -11 -10 -9 ------------- Run | Yrd Mat Mat Turns Passed 2708 | 213 1522 973 Spaces Moved 1087 | 116 627 344 Core 11 | 11 . . Treads . | . . . Legs 921 | 105 627 189 Wheels 73 | . . 73 Hover 82 | . . 82 Flight . | . . . Fastest Speed 50 | 50 120 95 Average Speed 204 | 124 209 220 Slowest Speed 490 | 200 260 490 Overloaded Moves . | . . . Propulsion Burnouts . | . . . Robots Hopped . | . . . Cave-ins Triggered . | . . . Exploration Rate (%) 41 | 6 89 30 Regions Visited 2 Branch Regions . Pre-discovered Areas . | . . . Known Exits Taken 1 | . 1 . Unknown Exits Taken 1 | 1 . . Scrap Searched . | . . . Spaces Dug 11 | . . 11 Terrain Destroyed 155 | 6 27 122 Melee . | . . . Projectile . | . . . AOE 155 | 6 27 122 Terrain Rammed . | . . . Walls Destroyed . | . . . Machines Disabled . | . . . Actions | -11 -10 -9 --------- Run | Yrd Mat Mat Total 1345 | 155 736 454 Wait . | . . . Move 1085 | 115 626 344 Hop . | . . . Pick Up 54 | 14 26 14 Fast Attach . | . . . Attach 20 | 8 2 10 Detach 1 | 1 . . Swap 18 | . 10 8 Drop 15 | . 9 6 Fire 151 | 17 63 71 Melee . | . . . Ram 1 | . . 1 Kick . | . . . Crush . | . . . Escape Stasis . | . . . Rewire . | . . . Trap . | . . . Miscellaneous . | . . . Route ------- -11/Scrapyard -10/Materials (discovered 4 exits: *Mat x3 / [Sub]) -9/Materials History --------- Turn | Location | Event 20 | -11/Scrapyard | Discovered new exit (range 16) 214 | -11/Scrapyard | Entered Materials 231 | -10/Materials | Discovered new exit (range 8) 328 | -10/Materials | Build established: Mutant 742 | -10/Materials | Discovered new exit (range 16) 1002 | -10/Materials | Discovered new exit (range 15) 1485 | -10/Materials | Discovered new exit (range 15) 1734 | -10/Materials | Identified exit to Materials 1736 | -10/Materials | Entered another Materials area 1736 | -9/Materials | Evolved 2 slots: Propulsion x1, Utility x1 2487 | -9/Materials | Core integrity fell below 50% 2526 | -9/Materials | Lost 6 parts (1p2n3w) 2551 | -9/Materials | Core integrity fell below 20% 2709 | -9/Materials | Destroyed self with Mini Grenade Launcher Last Messages --------------- 02604_ Acquired Wheel. 02606_ The unstable cave ceiling collapses. 02650_ Acquired Huge Storage Unit. 02652_ Dropped Hcp. Storage Unit. 02677_ W-16 Scout sends out distress signal. 02678_ W-16 Scout destroyed. 02680_ K-01 Serf collects debris. 02685_ Wheel destroyed. 02686_ Integration Channel disabled. 02688_ K-01 Serf collects debris. 02689_ Wheel destroyed. 02691_ K-01 Serf collects debris. 02692_ K-01 Serf destroyed. 02692_ S-10 Pest destroyed. 02697_ S-10 Pest suffers critical hit (Blast). 02697_ S-10 Pest destroyed. 02697_ Wheel destroyed. 02704_ U-05 Engineer lays Concrete. 02706_ Lgt. Cannon destroyed. 02706_ U-05 Engineer lays Concrete. Map ----- +----------------------------------------------------+ | ???????????????????????# # % ## #???????? | | ???????????????????????# # ## #???????? | | ???????????????????????# ?# !!## #???????? | | ???????????????????????# ?# !!## #???????? | | ???????????????????????# #####/##### #???????? | | ???????????????????????# #???????? | | ???????????????????????# #???????? | | ???????????????????????# """"" #???????? | | ???????????????????????######## """"" +???????? | | ??????????????????????????????# """"" #???????? | | ??????????????????????????????# #???????? | | ??????????????????????######### #???????? | | ??????????????????????# #???????? | | ??????????????????????# #???????? | | ??????????????????????# #???????? | | ??????????????????????# ######???????? | | ??????????????????????# #????????????? | | ??????????????????????# " #????????????? | | ????????????########### " "" #????????????? | | ????? ###??????????? | | ????????????########### *% #??????????? | | ??????????????????????# u!% +??????????? | | ??????????????????????# [= =t #??????????? | | ??????????????????????# t % #+### #??????????? | | ??????????????????????## #?????? #??????????? | | ???????????????????????# @ #?????? #??????????? | | ????????????????????! #?????? #??????????? | | ????????????????# !!= #?????? #??????????? | | ????????????????# !!= Y #?????? #??????????? | | ????????????????# +????? #??????????? | | ????????????????# ###?????? #??????????? | | ????????????????# ???????? #??????????? | | ???????????????a# "T ???????? ??????????? | | ????????????????# ???????? ????????????? | | ????????????????##### #????????????????????? | | ????????????????????Y ????????????????????? | | ???????????????????? ????????????????????? | | ??????????????????? ????????????????????? | | ???????????????????+## ##????????????????????? | | ????????????????????? ??????????????????????? | | ???????????????????????"" ??????????????????????? | | ?????????????????????????????????????????????????? | | ?????????????????????????????????????????????????? | | ?????????????????????????????????????????????????? | | ?????????????????????????????????????????????????? | | ?????????????????????????????????????????????????? | | ?????????????????????????????????????????????????? | | ?????????????????????????????????????????????????? | | ?????????????????????????????????????????????????? | | ?????????????????????????????????????????????????? | +----------------------------------------------------+ Best States ------------- Heat Dissipation 28 Energy Generation 10 Energy Capacity 250 Matter Stores 300 Matter Capacity 300 Sight Range 16 Robot Scan Range 14 Terrain Scan Range 16 Terrain Scan Density 10 Evasion (%) 55 Item Schematics ----------------- None Robot Schematics ------------------ None Fabricated ------------ Nothing Alien Tech Used ----------------- None Achievements -------------- Let's See Who's Tougher Challenges ------------ None Game ------ Seed ResetMolecularFrame Manual? 0 Play Time 00:27:55 Cumulative 3.5 hours Start 2024.04.01 @ 15:10:54 End 2024.04.01 @ 15:39:34 Sessions 1 Manual Loads 0 Difficulty Rogue Special Mode None Game No. 5 Rogue 5 Adventurer 0 Explorer 0 Win Type - Total 0 Types 0/0/0/0/0/0/0/0/0 Lore% 5 Gallery% 6 Achievement% 8 Wizard Run 0 Options --------- Layout 1 ASCII 0 Keyboard 0 Movement Mouse Keybinds 0 Fullscreen 1 Font 16/SmallcapsGlow Map View 55x38 Zoom Use 0% Tactical HUD 1 Map Filters NONE Filters NONE Steam 1 RUN: 2810b91e-7387-41d0-9dfc-6b4c383bd935